bitfinex/quotes_ETHUSD_20260121
["timestamp","ask_amount","ask_price","bid_price","bid_amount"]
[1769000758235,0.001,2943.0,2941.6,10.88775661]
[1769000758531,0.001,2943.0,2941.7,0.6892252]
[1769000760317,0.95151975,2943.0,2941.3,0.6912252]
[1769000760840,0.001,2943.0,2941.3,0.6912252]
[1769000761544,0.001,2943.0,2941.4,0.6892252]
[1769000762247,0.0008004,2943.3,2941.7,0.6882252]
[1769000762540,0.95051975,2944.2,2943.0,0.00080048]
[1769000763150,0.95051975,2944.0,2943.0,0.00080048]
[1769000763315,0.00080048,2943.3,2941.8,0.562]
[1769000763525,0.00080048,2943.3,2941.9,0.6882252]
[1769000764446,0.00080048,2943.3,2942.0,10.19714478]
[1769000765242,0.95051975,2943.8,2942.1,0.6882252]
[1769000765419,0.95051975,2944.2,2943.0,0.00080056]
[1769000769824,0.95051975,2944.9,2943.0,0.00080056]
[1769000770025,0.95051975,2944.7,2943.0,0.00080056]
[1769000770662,0.95051975,2944.7,2943.0,1.25022528]
[1769000771860,0.95051975,2945.4,2943.1,0.68742472]
[1769000772058,0.9929588,2945.4,2943.1,0.68742472]
[1769000772259,0.95051975,2945.4,2943.4,0.68742472]
[1769000772556,0.95051975,2945.4,2943.5,10.87937308]
[1769000773258,0.95051975,2945.4,2943.6,0.68742472]
[1769000774253,0.78251975,2945.4,2943.6,0.68742472]
[1769000774467,0.78065456,2945.4,2943.6,0.68742472]
[1769000774632,0.78065456,2945.4,2943.8,0.85628991]
[1769000775170,0.003,2945.5,2943.8,0.85628991]
[1769000775459,0.003,2945.5,2943.9,0.562]
[1769000775962,0.003,2945.5,2944.0,0.85628991]
[1769000776560,0.99008948,2945.5,2944.2,6.79301676]
[1769000776767,0.99008948,2945.5,2943.6,0.85628991]
[1769000776768,0.98808948,2945.5,2943.6,0.85628991]
[1769000777137,0.98808948,2945.5,2943.9,3.39681852]
[1769000777373,0.98708948,2945.3,2943.4,1.41828991]
[1769000777532,0.98708948,2945.7,2944.2,0.85628991]
[1769000777836,0.99308948,2946.0,2944.2,0.85628991]
[1769000778037,0.99308948,2946.0,2944.3,0.562]
[1769000778642,0.99308948,2946.0,2944.4,6.79255534]
[1769000779362,0.99308948,2946.0,2944.4,11.04512292]
[1769000779668,0.99308948,2946.0,2944.5,0.85628991]
[1769000779971,0.98708948,2947.1,2945.2,0.85628991]
[1769000780460,0.98708948,2946.9,2945.1,0.85628991]
[1769000780644,0.98708948,2948.0,2945.6,5.72041312]
[1769000780846,0.98708948,2947.8,2945.7,0.85628991]
[1769000781241,1.02949542,2947.7,2945.3,0.85628991]
[1769000781466,1.02949542,2947.7,2945.3,1.41828991]
[1769000782571,1.02949542,2947.7,2945.4,0.85628991]
[1769000782771,1.02949542,2947.7,2945.5,6.79001866]
[1769000783459,0.98708948,2947.6,2945.5,6.79001866]
[1769000783678,1.0294983,2947.5,2945.5,6.79001866]
[1769000784481,1.0294983,2947.5,2945.2,3.39532057]
[1769000784482,1.0294983,2947.5,2945.2,3.39528946]
[1769000784688,0.98708948,2947.3,2944.7,3.39591737]
[1769000784864,0.98708948,2947.1,2944.6,3.39598282]
[1769000785037,0.98708948,2947.1,2943.9,0.85628991]
[1769000785038,0.98708948,2946.7,2943.9,0.85628991]
[1769000785245,0.98708948,2946.5,2944.0,3.39671092]
[1769000785461,0.98708948,2946.3,2944.3,3.39635972]
[1769000785754,0.98708948,2946.1,2944.6,3.39597669]
[1769000786073,0.98708948,2946.1,2944.7,3.39591767]
[1769000786248,0.98708948,2946.1,2944.1,0.85628991]
[1769000786440,0.98708948,2946.1,2944.7,3.39588617]
[1769000786638,0.98708948,2946.1,2944.3,6.79278606]
[1769000786870,0.98708948,2946.1,2944.7,0.002]
[1769000788066,3.39367466,2946.7,2944.7,0.85828991]
[1769000788067,0.98708948,2946.7,2944.7,0.85828991]
[1769000788874,0.98708948,2946.7,2944.8,10.18744905]
[1769000789590,0.98708948,2947.1,2944.9,0.85628991]
[1769000790161,0.98708948,2946.9,2945.0,0.562]
[1769000790468,0.98708948,2947.4,2945.2,0.85628991]
[1769000790868,0.98708948,2947.4,2945.4,0.85628991]
[1769000791906,0.98708948,2947.4,2945.5,0.562]
[1769000792364,0.98708948,2947.4,2945.6,0.85628991]
[1769000793088,0.98708948,2947.4,2945.7,10.18433649]
[1769000793960,0.98708948,2947.4,2945.7,6.78955766]
[1769000794165,0.98708948,2947.4,2945.8,0.561]
[1769000795215,0.98708948,2947.4,2945.9,6.7890967]
[1769000795705,0.98708948,2947.4,2946.0,0.561]
[1769000797128,0.98708948,2947.4,2945.9,3.95554835]
[1769000797495,0.98708948,2947.4,2945.9,7.3500967]
[1769000797907,0.98708948,2947.4,2945.9,6.7890967]
[1769000798109,0.98708948,2947.4,2945.8,3.95559752]
[1769000798329,0.98708948,2947.4,2945.9,3.39452479]
[1769000798531,0.98708948,2947.4,2945.8,3.95563573]
[1769000799102,0.98708948,2947.4,2945.8,3.95556635]
[1769000799432,0.98708948,2947.4,2945.9,3.39454295]
[1769000799822,0.001,2947.2,2945.8,3.39464495]
[1769000800131,0.98708948,2947.1,2945.8,3.39464495]
[1769000800796,0.98708948,2947.1,2945.8,3.39460839]
[1769000801521,0.98708948,2947.1,2945.5,0.561]
[1769000802440,0.98708948,2947.1,2945.5,1.41728991]
[1769000803097,0.9847154,2947.1,2945.5,1.41728991]
[1769000803495,0.001,2947.2,2945.5,1.41728991]
[1769000803496,0.001,2947.2,2945.7,0.85866399]
[1769000804895,0.98808948,2947.2,2945.6,6.78978814]
[1769000805127,0.98808948,2947.2,2945.7,0.561]
[1769000805298,0.98808948,2947.2,2945.6,6.78978814]
[1769000805497,0.98808948,2947.2,2945.6,0.561]
[1769000807429,0.98808948,2947.2,2945.7,3.39477883]
[1769000807631,0.98808948,2947.2,2945.7,6.78955766]
[1769000807846,0.98808948,2947.2,2945.5,3.39493428]
[1769000808000,0.98808948,2947.2,2945.6,3.95588017]
[1769000808331,0.98808948,2947.2,2945.6,7.35077424]
[1769000810325,0.94666238,2947.1,2945.6,0.561]
[1769000810524,0.94666238,2947.1,2944.8,3.39575921]
[1769000810525,0.94666238,2946.9,2944.8,3.39575921]
[1769000810906,0.94666238,2946.9,2944.8,3.39579979]
[1769000811116,0.94666238,2946.9,2944.7,0.002]
[1769000811434,0.94666238,2946.9,2944.9,3.39564226]
[1769000811823,0.94666238,2946.7,2944.7,0.002]
[1769000812144,0.94666238,2946.5,2944.7,0.002]
[1769000812316,0.94666238,2946.5,2944.5,6.79232466]
[1769000812503,0.94666238,2946.5,2944.5,6.79032847]
[1769000812933,0.94666238,2946.5,2944.5,6.79232847]
[1769000814031,0.94666238,2946.4,2944.5,0.002]
[1769000814229,0.94666238,2946.2,2944.5,0.002]
[1769000816536,0.94666238,2946.1,2944.5,0.002]
[1769000817634,0.94666238,2946.1,2944.5,0.94696152]
[1769000818027,0.94666238,2946.1,2944.6,6.792094]
[1769000818922,0.94666238,2946.1,2944.5,3.39810928]
[1769000819129,0.94666238,2946.1,2944.5,0.002]
[1769000819509,0.90715701,2945.9,2944.5,0.002]
[1769000821038,0.90715701,2945.8,2944.5,0.002]
[1769000821726,0.90715701,2945.8,2943.8,3.3969355]
[1769000821932,0.89816124,2945.8,2943.7,3.39703668]
[1769000822236,4.03523594,2946.2,2943.6,3.39718577]
[1769000822237,0.90715701,2945.6,2943.6,3.39718577]
[1769000822414,3.39477883,2945.7,2943.5,3.39726575]
[1769000822415,0.90715701,2945.4,2943.5,3.39726575]
[1769000823417,0.90715701,2945.4,2943.6,0.94496152]
[1769000824118,0.90715701,2945.4,2943.8,0.94496152]
[1769000825409,0.90715701,2945.4,2943.7,6.7961706]
[1769000826434,0.90715701,2945.4,2943.7,0.002]
[1769000828040,0.90715701,2945.3,2943.7,0.002]
[1769000828241,0.90715701,2944.9,2943.7,0.002]
[1769000830537,0.128,2945.9,2943.7,0.002]
[1769000830538,0.90715701,2945.8,2943.7,0.002]
[1769000830712,0.90715701,2945.6,2943.7,0.002]
[1769000830913,0.90715701,2945.4,2943.7,0.002]
[1769000833040,0.04244049,2945.3,2943.7,0.002]
[1769000833341,0.90715701,2945.2,2943.7,0.002]
[1769000833555,0.90715701,2945.0,2943.7,0.002]
[1769000834079,0.04244626,2944.9,2943.7,0.002]
[1769000834284,0.90715701,2944.8,2943.7,0.002]
[1769000837382,0.04244338,2945.1,2943.7,0.002]
[1769000837383,0.91653119,2945.1,2943.7,0.97774607]
[1769000838303,0.91653119,2945.7,2943.7,0.97774607]
[1769000838451,0.91653119,2946.4,2944.4,0.97574607]
[1769000839051,0.004,2946.7,2944.5,0.97574607]
[1769000840485,0.004,2946.7,2944.7,0.97574607]
[1769000840875,0.92053119,2946.7,2944.7,0.97574607]
[1769000841389,0.91653119,2946.5,2944.7,0.97574607]
[1769000842368,0.004,2946.7,2944.7,0.97574607]
[1769000842564,0.004,2946.7,2944.9,0.97574607]
[1769000843694,0.92053119,2946.7,2944.9,0.97574607]
[1769000844792,0.91653119,2946.5,2945.0,6.79117146]
[1769000845299,0.91653119,2946.5,2945.0,7.76691753]
[1769000846588,0.004,2946.7,2945.1,0.97574607]
[1769000846790,0.004,2946.7,2945.3,0.97574607]
[1769000848883,0.004,2946.7,2945.4,6.7902492]
[1769000850218,0.92053119,2946.7,2945.4,6.7902492]
[1769000850420,0.004,2946.7,2945.4,10.1853738]
[1769000850718,0.92053119,2946.7,2945.4,6.7902492]
[1769000850917,0.92053119,2946.7,2945.2,0.97574607]
[1769000850918,0.92053119,2946.7,2945.3,6.79047974]
[1769000851403,0.91653119,2946.5,2945.2,6.79065193]
[1769000851719,0.91653119,2946.5,2945.2,3.39529678]
[1769000852092,0.91653119,2946.5,2945.0,3.39552248]
[1769000852295,0.91653119,2946.5,2944.9,0.002]
[1769000852497,0.9589544,2946.5,2944.9,0.002]
[1769000853185,0.91653119,2946.3,2944.9,0.002]
[1769000855511,0.91653119,2946.2,2944.9,0.002]
[1769000860142,0.04642033,2946.7,2944.9,0.97774607]
[1769000860143,0.91653119,2946.5,2944.9,0.97774607]
[1769000861442,0.04642033,2946.7,2945.1,0.97574607]
[1769000862299,0.96295152,2946.7,2945.1,0.97574607]
[1769000863733,0.96295152,2946.7,2945.1,4.37117143]
[1769000863938,0.96295152,2946.7,2945.0,3.39552606]
[1769000864242,0.91653119,2946.5,2945.1,7.7666549]
[1769000864536,0.9589544,2946.5,2945.1,7.7686549]
[1769000864740,0.91653119,2946.5,2945.1,7.7686549]
[1769000868624,0.91653119,2946.5,2945.1,6.79290883]
[1769000869909,0.91653119,2946.5,2945.1,0.002]
[1769000870733,0.91653119,2946.5,2945.1,0.99928395]
[1769000871812,0.004,2946.7,2945.3,0.99728395]
[1769000874056,0.004,2946.7,2945.5,0.99728395]
[1769000875973,0.004,2946.7,2945.6,7.78707209]
[1769000876646,0.004,2946.7,2945.7,0.99728395]
[1769000878367,0.004,2946.7,2945.8,6.78932716]
[1769000878664,0.004,2946.7,2945.8,7.69990539]
[1769000879034,0.004,2946.7,2945.9,0.91057823]
[1769000879234,0.78442046,2947.3,2945.9,0.91057823]
[1769000879848,0.95008801,2947.9,2945.9,0.91057823]
[1769000880049,0.95008801,2947.7,2945.9,0.91057823]
[1769000880265,0.95008801,2947.5,2945.9,0.91057823]
[1769000880564,0.95008801,2947.3,2946.0,6.78886624]
[1769000880940,0.95008801,2947.3,2946.0,3.39443312]
[1769000881454,0.95008801,2947.3,2945.9,4.3050688]
[1769000881657,0.95008801,2947.3,2945.9,3.39449057]
[1769000881844,0.95008801,2947.1,2945.3,0.91257823]
[1769000882050,0.95008801,2946.9,2945.7,3.39470693]
[1769000882269,0.95008801,2946.9,2945.5,3.3949807]
[1769000882270,0.95008801,2946.7,2945.3,0.91257823]
[1769000882442,0.95008801,2946.7,2945.4,6.7902492]
[1769000882764,0.95008801,2946.7,2945.3,4.3077745]
[1769000883136,0.95008801,2946.7,2945.3,3.39719627]
[1769000883537,0.95008801,2946.7,2945.3,6.79243614]
[1769000886153,0.95008801,2946.7,2945.3,7.70301437]
[1769000887677,0.95008801,2946.7,2945.4,0.91057823]
[1769000888183,0.95008801,2946.7,2945.3,0.002]
[1769000888555,0.95008801,2946.7,2945.3,3.39723525]
[1769000888753,0.95008801,2946.7,2945.3,6.79247512]
[1769000889476,0.95008801,2946.7,2945.5,3.39500933]
[1769000890051,0.95008801,2946.7,2945.5,3.39700933]
[1769000890976,0.95008801,2946.7,2945.5,0.002]
[1769000891185,0.99250978,2946.6,2945.5,0.002]
[1769000891350,0.95008801,2946.4,2945.3,0.002]
[1769000893984,0.95008801,2946.4,2944.9,0.002]
[1769000893985,0.95008801,2946.3,2944.9,0.002]
[1769000894279,0.95008801,2946.3,2944.5,3.39616233]
[1769000894656,0.95008801,2946.3,2944.5,6.79232466]
[1769000895380,0.95008801,2946.3,2944.6,0.98640857]
[1769000895882,0.95008801,2946.3,2944.8,0.98640857]
[1769000896482,0.95008801,2946.3,2944.7,6.79186334]
[1769000896483,0.9120538,2946.1,2944.7,6.79186334]
[1769000897182,0.9120538,2946.1,2944.7,11.17420358]
[1769000897495,0.9120538,2946.1,2944.8,0.98640857]
[1769000897711,0.9120538,2946.4,2945.0,0.98640857]
[1769000897850,0.9120538,2947.0,2945.0,0.98640857]
[1769000898054,0.9120538,2946.8,2945.0,0.98640857]
[1769000898279,0.9120538,2946.6,2945.0,0.98640857]
[1769000898588,0.9120538,2946.4,2945.0,0.98640857]
[1769000899666,0.9120538,2947.4,2945.2,0.98640857]
[1769000899865,0.9120538,2947.2,2945.2,0.98640857]
[1769000900055,0.04241169,2947.3,2945.2,0.98640857]
[1769000900056,0.9120538,2947.0,2945.2,0.98640857]
[1769000901708,0.9120538,2947.4,2945.5,0.98640857]
[1769000901997,0.06278931,2948.3,2945.5,0.98640857]
[1769000902161,0.9120538,2948.2,2945.5,0.98640857]
[1769000902362,0.9120538,2948.0,2945.5,0.98640857]
[1769000902564,0.9120538,2947.8,2945.5,0.98640857]
[1769000902775,0.9120538,2947.6,2945.5,0.98640857]
[1769000902972,0.9120538,2947.8,2945.5,0.98640857]
[1769000903193,0.9120538,2948.1,2945.5,0.98640857]
[1769000903399,0.9120538,2947.6,2945.5,0.98640857]
[1769000903598,0.9120538,2947.6,2945.7,0.98640857]
[1769000903896,0.9120538,2947.6,2945.6,14.5]
[1769000903897,0.9120538,2947.6,2945.9,0.98640857]
[1769000904303,0.9120538,2947.9,2945.9,0.98640857]
[1769000904509,0.0424045,2947.8,2945.9,0.98640857]
[1769000905100,0.9544583,2947.8,2945.9,0.98640857]
[1769000905466,0.9544583,2947.8,2945.8,6.78932716]
[1769000905701,0.9544583,2947.8,2945.6,0.98640857]
[1769000905702,3.43480233,2947.8,2945.7,6.78955766]
[1769000905926,0.9120538,2947.6,2945.7,11.17074506]
[1769000906231,0.9120538,2947.4,2945.7,7.77596623]
[1769000906422,0.9120538,2947.2,2945.7,7.77596623]
[1769000906606,0.04241457,2947.1,2945.7,7.77596623]
[1769000906926,0.9120538,2947.2,2945.7,7.77596623]
[1769000907530,0.9120538,2947.0,2945.2,0.002]
[1769000907835,6.7847753,2947.8,2945.2,0.002]
[1769000907836,0.9120538,2946.8,2945.2,0.002]
[1769000908033,0.9120538,2946.6,2945.2,0.002]
[1769000908234,0.9120538,2946.4,2945.2,0.002]
[1769000912804,0.4120538,2946.4,2945.2,0.002]
[1769000913008,0.4120538,2946.4,2945.0,0.002]
[1769000913009,0.9120538,2946.3,2945.0,0.002]
[1769000913303,0.9120538,2946.3,2944.4,3.39624608]
[1769000914112,3.39417025,2946.3,2944.3,3.39631791]
[1769000914431,0.9120538,2946.1,2944.4,0.98640857]
[1769000916737,0.9120538,2946.1,2944.5,6.79232466]
[1769000916920,0.9120538,2946.1,2944.5,7.77873323]
[1769000917339,0.9120538,2946.1,2944.6,0.98640857]
[1769000918142,0.04243041,2946.0,2944.6,0.98640857]
[1769000919658,0.95448421,2946.0,2944.6,4.38238561]
[1769000919811,0.95448421,2946.0,2944.6,0.98640857]
[1769000920212,0.95448421,2946.0,2944.6,4.38240037]
[1769000920411,0.95448421,2946.0,2944.6,6.7920388]
[1769000920665,0.95448421,2946.0,2944.7,0.98640857]
[1769000921739,0.9120538,2945.9,2944.2,0.561]
[1769000921934,0.9120538,2945.7,2944.2,3.95745259]
[1769000922239,0.9120538,2945.5,2944.1,4.38497372]
[1769000922656,0.9120538,2945.5,2944.1,0.98840857]
[1769000922964,0.9120538,2945.5,2944.1,4.38496869]
[1769000923332,0.9120538,2945.5,2944.1,0.98840857]
[1769000923964,0.9120538,2945.3,2944.1,0.002]
[1769000925172,0.9120538,2945.3,2943.8,0.002]
[1769000925555,6.7907103,2945.2,2943.8,0.002]
[1769000925767,0.98452051,2945.1,2943.8,0.002]
[1769000925966,0.98452051,2945.1,2943.6,0.002]
[1769000926159,0.98452051,2944.9,2943.0,0.00280056]
[1769000926540,0.98452051,2944.9,2943.2,1.91e-06]
[1769000927072,0.98452051,2944.9,2944.0,0.002]
[1769000927235,0.98452051,2944.9,2943.2,1.91e-06]
[1769000928180,0.98452051,2944.7,2943.2,1.91e-06]
[1769000928894,0.98452051,2944.5,2943.2,1.91e-06]
[1769000930065,0.98452051,2944.3,2943.2,1.91e-06]
[1769000930262,0.98452051,2944.1,2943.2,1.91e-06]
[1769000932392,0.98452051,2944.1,2943.2,0.00160191]
[1769000932574,0.0008,2943.5,2943.0,0.00280056]
[1769000934668,0.0008,2943.5,2943.0,0.002]
[1769000938900,0.0008,2943.5,2943.2,0.002]
[1769000939207,0.0008,2943.5,2943.0,0.002]
[1769000939997,3.39621685,2944.5,2943.0,0.91750691]
[1769000940197,1.38055101,2944.4,2943.5,0.00080008]
[1769000940514,0.98472932,2944.3,2943.2,0.00080008]
[1769000940709,0.98472932,2944.3,2943.2,0.91630699]
[1769000940918,0.98472932,2944.6,2943.2,0.91630699]
[1769000941513,0.04245202,2944.5,2943.2,0.91630699]
[1769000941685,0.04244914,2944.7,2943.2,0.91630699]
[1769000941884,0.562,2945.2,2943.2,0.91630699]
[1769000942091,0.60444193,2945.2,2943.2,0.91630699]
[1769000942729,0.04244193,2945.2,2943.4,0.91550691]
[1769000943021,1.02717125,2945.2,2943.4,0.91550691]
[1769000943182,0.98472932,2945.1,2943.3,0.91550691]
[1769000943386,0.98472932,2944.9,2943.3,0.91550691]
[1769000943611,1.02717702,2944.8,2943.3,0.91550691]
[1769000943813,1.02717702,2944.8,2943.2,0.00080008]
[1769000944585,1.02717702,2944.8,2943.2,0.91630699]
[1769000944786,0.98472932,2944.6,2943.2,0.91630699]
[1769000944988,0.04245202,2944.5,2943.2,0.91630699]
[1769000946219,0.04245058,2944.6,2943.3,0.91550691]
[1769000946423,0.98472932,2945.3,2943.3,0.91550691]
[1769000946591,0.04244193,2945.2,2943.3,0.91550691]
[1769000946939,0.44224173,2945.1,2943.5,0.91550691]
[1769000947115,0.04244482,2945.0,2943.5,0.91550691]
[1769000947612,0.04244193,2945.2,2943.5,0.91550691]
[1769000948120,1.02717125,2945.2,2943.5,0.91550691]
[1769000948711,4.42253498,2945.2,2943.7,0.91550691]
[1769000948917,4.42253498,2945.2,2943.2,0.00080008]
[1769000948918,0.98472932,2945.0,2943.2,0.00080008]
[1769000949221,0.98472932,2944.8,2943.2,0.00080008]
[1769000949420,0.98472932,2944.6,2943.2,0.00080008]
[1769000949602,0.98472932,2944.4,2943.2,0.00080008]
[1769000949798,0.98472932,2944.2,2943.2,0.00080008]
[1769000950117,0.04245779,2944.1,2943.2,0.00080008]
[1769000951030,1.02718855,2944.0,2943.0,0.002]
[1769000951541,0.04245923,2944.0,2943.0,0.002]
[1769000951834,0.04245347,2944.4,2943.0,0.91750691]
[1769000952002,0.44233618,2944.3,2943.0,0.91750691]
[1769000952198,0.04245635,2944.2,2943.0,0.91750691]
[1769000952510,0.04245635,2944.2,2943.0,0.002]
[1769000952713,1.02718567,2944.2,2943.0,0.002]
[1769000953614,4.42370086,2944.2,2943.0,0.002]
[1769000953832,0.44237009,2944.1,2943.0,0.002]
[1769000954028,0.04245923,2944.0,2943.0,0.002]
[1769000954215,1.02718855,2944.0,2943.0,0.002]
[1769000954801,0.98472932,2944.4,2943.0,0.91750691]
[1769000955531,0.04245491,2944.3,2943.0,0.91750691]
[1769000956136,0.44234701,2944.2,2943.0,0.91750691]
[1769000956319,0.04245491,2944.3,2943.0,0.91750691]
[1769000957857,0.98472932,2944.4,2943.0,0.91750691]
[1769000959734,1.02718279,2944.4,2943.0,0.91750691]
[1769000959916,1.02718279,2944.4,2943.0,3.39987856]
[1769000960117,0.08,2944.6,2943.1,0.97879893]
[1769000960313,0.001,2944.9,2943.1,0.97879893]
[1769000960955,0.98021886,2944.8,2943.1,0.97879893]
[1769000961249,1.02266656,2944.8,2943.1,0.97879893]
[1769000961451,0.98021886,2944.6,2943.1,0.97879893]
[1769000961631,1.02267088,2944.5,2943.1,0.97879893]
[1769000961963,1.02267088,2944.5,2943.2,0.97879893]
[1769000962153,0.98021886,2944.8,2943.2,0.97879893]
[1769000962357,1.022668,2944.7,2943.2,0.97879893]
[1769000962725,1.022668,2944.7,2943.2,0.98079893]
[1769000964057,1.42207857,2944.6,2943.2,0.98079893]
[1769000964225,0.04245202,2944.5,2943.2,0.98079893]
[1769000964626,1.02267088,2944.5,2943.2,0.98079893]
[1769000966141,0.98021886,2944.4,2943.2,0.98079893]
[1769000966342,1.02267377,2944.3,2943.2,0.002]
[1769000966954,1.02267377,2944.3,2943.0,0.002]
[1769000967883,1.02267377,2944.3,2943.1,0.97879893]
[1769000968090,0.44190138,2944.2,2943.1,0.97879893]
[1769000968244,0.04245779,2944.1,2943.1,0.97879893]
[1769000969486,0.04245635,2944.2,2943.1,0.97879893]
[1769000970176,0.04245491,2944.3,2943.1,0.97879893]
[1769000970382,0.44185971,2944.6,2943.2,0.97879893]
[1769000970383,0.04245202,2944.5,2943.2,0.97879893]
[1769000970743,0.44187412,2944.4,2943.2,0.97879893]
[1769000970948,0.04245491,2944.3,2943.2,0.97879893]
[1769000971147,1.02267377,2944.3,2943.0,0.002]
[1769000971573,0.98021886,2944.2,2943.0,0.002]
[1769000971884,0.98021886,2943.9,2943.0,0.002]
[1769000972184,0.98021886,2943.9,2942.9,0.002]
[1769000972185,0.81983183,2943.8,2942.9,0.002]
[1769000972340,0.04246212,2943.8,2942.9,0.002]
[1769000973047,0.04246356,2943.7,2942.9,0.002]
[1769000973984,0.04246212,2943.8,2942.9,0.002]
[1769000974200,0.042465,2943.6,2942.9,0.002]
[1769000974359,0.04246212,2943.8,2943.1,0.002]
[1769000974554,0.04246212,2943.8,2942.9,0.002]
[1769000976285,0.04245923,2944.0,2942.9,0.98079893]
[1769000977015,4.41942624,2944.0,2942.9,0.002]
[1769000977169,0.49814262,2943.9,2942.9,0.002]
[1769000977374,0.04246212,2943.8,2942.9,0.002]
[1769000978084,1.02268098,2943.8,2942.9,0.002]
[1769000978280,0.98021886,2943.7,2942.9,0.002]
[1769000978493,0.042465,2943.6,2942.9,0.002]
[1769000979001,3.39679679,2944.0,2942.9,0.002]
[1769000979002,0.04246068,2943.9,2942.9,0.002]
[1769000979684,1.02267954,2943.9,2942.9,0.002]
[1769000980083,1.02267954,2943.9,2942.4,0.97879893]
[1769000980302,0.98021886,2943.7,2942.4,0.97879893]
[1769000980502,1.46040274,2943.6,2942.4,0.97879893]
[1769000980695,1.02268386,2943.6,2942.4,0.97879893]
[1769000981718,1.02268386,2943.6,2942.1,0.97879893]
[1769000982214,3.39731612,2943.5,2942.1,0.97879893]
[1769000982414,1.02268675,2943.4,2941.8,0.98079893]
[1769000983100,0.562,2943.3,2941.9,0.97879893]
[1769000983286,0.98021886,2943.4,2942.0,0.97879893]
[1769000983487,0.60446933,2943.3,2942.0,0.97879893]
[1769000984820,1.47843523,2943.2,2942.0,0.97879893]
[1769000985013,0.04247222,2943.1,2942.0,0.97879893]
[1769000985818,1.02470637,2943.1,2942.0,0.97879893]
[1769000986020,1.02470637,2943.1,2941.8,0.002]
[1769000986592,1.02470637,2943.1,2942.2,0.002]
[1769000987401,4.42249219,2943.1,2942.2,0.002]
[1769000987722,0.44224922,2943.0,2942.2,0.002]
[1769000988019,1.02470925,2942.9,2942.0,0.002]
[1769000988224,0.98223415,2942.9,2942.0,0.002]
[1769000988399,0.98223415,2942.9,2941.8,0.002]
[1769000988400,1.02470925,2942.9,2941.8,0.002]
[1769000988601,0.98223415,2942.8,2941.8,0.002]
[1769000988810,0.04247799,2942.7,2941.8,0.98808451]
[1769000989413,0.04247655,2942.8,2941.8,0.98808451]
[1769000990904,0.38651455,2942.8,2941.8,0.98808451]
[1769000991109,0.04247655,2942.8,2941.8,0.98808451]
[1769000991428,0.04247799,2942.7,2941.8,0.98808451]
[1769000991627,0.0424751,2942.9,2941.8,0.98808451]
[1769000992630,1.02470925,2942.9,2941.8,0.98808451]
[1769000992933,4.4227293,2942.9,2941.8,0.002]
[1769000993136,0.44227293,2942.8,2941.8,0.002]
[1769000993431,0.04247799,2942.7,2941.8,0.002]
[1769000993930,0.48474948,2942.8,2941.8,0.002]
[1769000994134,0.04247655,2942.8,2941.9,0.98608451]
[1769000994320,0.04247655,2942.8,2941.8,0.002]
[1769000994524,0.04247655,2942.8,2941.8,0.98808451]
[1769000995031,0.04247655,2942.8,2941.9,0.98608451]
[1769000995202,0.98223415,2943.3,2941.9,0.98608451]
[1769000995841,0.48043906,2943.2,2941.9,0.98608451]
[1769000996835,1.46267321,2943.2,2942.0,0.98608451]
[1769000997052,1.02470493,2943.2,2942.0,0.98608451]
[1769000997721,0.04247078,2943.2,2942.0,0.98608451]
[1769000997901,0.128,2943.7,2942.0,0.98608451]
[1769000998546,4.90750815,2943.8,2942.0,0.98608451]
[1769000998547,1.51053635,2943.8,2942.0,0.98608451]
[1769000998703,0.49074518,2943.7,2942.2,0.90987966]
[1769000998908,0.94853635,2943.8,2942.2,0.90987966]
[1769000999134,0.001,2943.0,2942.2,0.90987966]
[1769000999333,0.001,2943.8,2942.3,0.90987966]
[1769001000706,0.001,2943.8,2942.5,0.90987966]
[1769001000906,0.04345491,2944.3,2942.5,0.90987966]
[1769001001940,0.001,2944.3,2942.5,0.90987966]
[1769001002139,0.04345491,2944.3,2942.5,0.90987966]
[1769001002823,0.04345491,2944.3,2942.7,0.90987966]
[1769001003018,0.001,2944.3,2942.7,0.90987966]
[1769001003223,0.04345491,2944.3,2942.7,0.90987966]
[1769001004153,0.04245635,2944.2,2942.7,0.90987966]
[1769001004480,0.001,2944.3,2942.7,0.90987966]
[1769001004481,0.94853635,2944.3,2942.7,0.90987966]
[1769001004644,0.9899927,2944.2,2942.4,4.30839336]
[1769001004843,0.94753635,2944.0,2942.5,0.90987966]
[1769001005072,0.77838249,2944.1,2942.5,0.90987966]
[1769001005278,0.04245923,2944.0,2942.5,0.90987966]
[1769001005481,0.001,2944.3,2942.5,0.90987966]
[1769001005482,0.04345491,2944.3,2942.5,0.90987966]
[1769001006243,0.001,2944.3,2942.5,0.90987966]
[1769001006453,0.04345491,2944.3,2942.5,0.90987966]
[1769001006864,0.04345491,2944.3,2942.7,0.90987966]
[1769001008278,0.99099126,2944.3,2942.7,0.90987966]
[1769001008860,0.04345491,2944.3,2942.8,6.79624846]
[1769001009167,0.04345491,2944.3,2942.9,0.90987966]
[1769001010661,0.04245635,2944.2,2942.9,0.90987966]
[1769001010861,0.04245635,2944.2,2943.0,0.90987966]
[1769001011062,0.001,2944.1,2943.0,0.90987966]
[1769001011901,0.04345779,2944.1,2943.0,0.90987966]
[1769001012063,0.99099414,2944.1,2943.0,0.90987966]
[1769001012495,0.04345779,2944.1,2943.0,0.90987966]
[1769001013193,0.04345779,2944.1,2943.1,0.90987966]
[1769001015892,0.04345779,2944.1,2942.9,3.39990912]
[1769001015893,1.00065363,2944.0,2942.9,0.002]
[1769001016091,1.00065363,2944.0,2942.9,4.36164875]
[1769001016285,1.00065363,2944.0,2942.9,0.96365277]
[1769001016589,0.04246068,2943.9,2942.9,0.96365277]
[1769001018797,1.04311431,2943.9,2942.9,0.96365277]
[1769001018977,1.04311431,2943.9,2942.9,0.002]
[1769001022489,1.00065363,2943.9,2942.9,0.96365277]
[1769001022688,0.04246212,2943.8,2942.9,0.96365277]
[1769001022891,0.04245923,2944.0,2942.9,0.96365277]
[1769001023813,1.04311286,2944.0,2942.9,0.96365277]
[1769001024386,1.04311286,2944.0,2943.1,0.002]
[1769001024702,1.00065363,2943.6,2943.1,0.002]
[1769001024917,1.00065363,2943.6,2942.9,0.002]
[1769001024918,0.52404755,2943.5,2942.9,0.002]
[1769001025618,0.04246645,2943.5,2942.9,0.002]
[1769001027725,3.24534335,2942.9,2942.6,0.96365277]
[1769001030115,0.87544769,2944.1,2942.8,0.96165277]
[1769001030422,1.04311286,2944.0,2942.8,0.96165277]
[1769001030909,1.00065363,2943.9,2942.8,0.96165277]
[1769001031113,0.04245779,2944.1,2943.2,0.96165277]
[1769001031280,1.00165363,2944.3,2943.2,0.96165277]
[1769001031281,1.04310998,2944.2,2943.2,0.96165277]
[1769001031477,1.04310998,2944.2,2943.0,0.96165277]